[Event "Turkish Super League 2019"]
[Site "Konya"]
[Date "2019.07.17"]
[Round "1"]
[White "Gadimbayli, Abdulla"]
[Black "Dimitrov, Radoslav"]
[Result "1-0"]
[ECO "B30"]
[WhiteElo "2414"]
[BlackElo "2530"]
[Annotator "ChessBase"]
[PlyCount "81"]
[EventDate "2019.07.17"]
[EventType "team-tourn"]
[EventCountry "TUR"]
[SourceTitle "playchess.com"]
[Source "ChessBase"]
[SourceQuality "1"]
[TimeControl "40/5400+30:1800+30"]

1. e4 c5 2. Nf3 Nc6 3. Bb5 e6 4. Bxc6 bxc6 5. d3 Ne7 6. Qe2 Ng6 7. O-O e5 8. c3 d6 9. d4 Qb6 10. Rd1 Bg4 11. dxe5 Nxe5 12. Nbd2 Be7 13. h3 Nxf3+ 14. Nxf3 Bxf3 15. Qxf3 O-O 16. b3 Rfd8 17. Bf4 Rd7 18. Rd2 Re8 19. Rad1 Qd8 20. c4 f6 21. Qg3 Qa5 22. Qg4 Rdd8 {[%emt 1:34:44]} 23. f3 {[%emt 1:34:06]} Bf8 {[%emt 0:00:30]} 24. Bxd6 {[%emt 0:00:00]} Bxd6 {[%emt 0:05:37]} 25. Rxd6 {[%emt 0:00:00]} Rxd6 {[%emt 0:00:30]} 26. Rxd6 {[%emt 0:00:02]} Qxa2 {[%emt 0:00:30]} 27. Rd7 {[%emt 0:00:30]} Qa1+ {[%emt 0:00:30]} 28. Kh2 {[%emt 0:00:30]} g5 {[%emt 0:00:56]} 29. Qf5 {[%emt 0:00:18]} Qe5+ {[%emt 0:00:30]} 30. Qxe5 {[%emt 0:00:40]} Rxe5 {[%emt 0:00:28]} 31. Rxa7 {[%emt 0:00:48]} f5 {[%emt 0:00:06]} 32. exf5 {[%emt 0:00:10]} Rxf5 {[%emt 0:00:30]} 33. Rc7 {[%emt 0:00:30]} Rf6 {[%emt 0:00:30]} 34. Kg3 {[%emt 0:00:00]} h6 {[%emt 0:01:03]} 35. h4 {[%emt 0:01:49]} gxh4+ {[%emt 0:00:33]} 36. Kxh4 {[%emt 0:00:04]} Rg6 {[%emt 0:00:14]} 37. g4 {[%emt 0:00:45]} Rf6 {[%emt 0:00:30]} 38. Kg3 {[%emt 0:00:30]} Rd6 {[%emt 0:00:00]} 39. f4 {[%emt 0:00:13]} Rd3+ {[%emt 0:01:36]} 40. Kh4 {[%emt 0:00:00]} Rxb3 {[%emt 0:00:00]} 41. Rxc6 {[%emt 0:01:35]} 1-0

[Event "Turkish Super League 2019"]
[Site "Konya"]
[Date "2019.07.17"]
[Round "1"]
[White "Kerigan, Demre"]
[Black "Ertan, Can"]
[Result "0-1"]
[ECO "C68"]
[WhiteElo "2398"]
[BlackElo "2396"]
[Annotator "NA"]
[PlyCount "108"]
[EventDate "2019.07.17"]
[EventType "team-tourn"]
[EventCountry "TUR"]
[SourceTitle "playchess.com"]
[Source "ChessBase"]
[SourceQuality "1"]
[TimeControl "40/5400+30:1800+30"]

1. e4 e5 2. Nf3 Nc6 3. Bb5 a6 4. Bxc6 dxc6 5. Nc3 Qd6 6. d4 exd4 7. Nxd4 c5 8. Nde2 Qxd1+ 9. Nxd1 Nf6 10. f3 Bd7 11. Bg5 Be7 12. Ne3 h6 13. Bf4 O-O-O 14. O-O-O Rhe8 15. g4 Bc6 16. Rxd8+ Bxd8 17. Nf5 g6 18. Nfg3 h5 19. gxh5 Nxh5 20. Nxh5 gxh5 21. Ng3 h4 22. Nf5 Rg8 23. Be3 Rg2 24. Bxc5 Bg5+ 25. Kb1 Bd7 26. Ne7+ Kd8 27. Nd5 c6 28. Nb6 Be6 29. Rd1+ Kc7 30. Na4 Bd2 31. Bb6+ Kb8 32. Nc5 Bc8 33. a3 h3 34. Nb3 Bf4 35. Rd8 Rxh2 {[%emt 1:20:30]} 36. Nc5 {[%emt 1:47:04]} Rd2 {[%emt 0:00:30]} 37. Rh8 {[%emt 0:00:30]} h2 {[%emt 0:00:30]} 38. Ka2 {[%emt 0:00:30]} Rd1 {[%emt 0:00:30]} 39. Nd3 {[%emt 0:00:30]} Bg3 {[%emt 0:00:30]} 40. Bf2 {[%emt 0:00:00]} Be5 {[%emt 0:00:00]} 41. Nxe5 {[%emt 0:02:56]} h1=Q {[%emt 0:11:00]} 42. Bg3 {[%emt 0:03:30]} Ra1+ {[%emt 0:03:30]} 43. Kb3 {[%emt 0:00:30]} Qxh8 {[%emt 0:02:30]} 44. Nxf7+ {[%emt 0:00:30]} Ka7 {[%emt 0:01:30]} 45. Nxh8 {[%emt 0:00:30]} Rf1 {[%emt 0:00:00]} 46. Be5 {[%emt 0:02:30]} Be6+ {[%emt 0:02:00]} 47. Kc3 {[%emt 0:02:30]} Rxf3+ {[%emt 0:00:00]} 48. Kd2 {[%emt 0:00:30]} Rf2+ {[%emt 0:00:00]} 49. Kd3 {[%emt 0:00:30]} Rg2 {[%emt 0:00:30]} 50. a4 {[%emt 0:06:07]} a5 {[%emt 0:02:30]} 51. Bc3 {[%emt 0:01:05]} Rg8 {[%emt 0:05:30]} 52. Ke3 {[%emt 0:00:30]} Kb8 {[%emt 0:00:30]} 53. Be5+ {[%emt 0:02:56]} Kc8 {[%emt 0:00:00]} 54. b3 {[%emt 0:03:01]} Kd7 {[%emt 0:01:00]} 0-1

[Event "Turkish Super League 2019"]
[Site "Konya"]
[Date "2019.07.17"]
[Round "1"]
[White "Yurtseven, Melih"]
[Black "Heberla, Bartlomiej"]
[Result "0-1"]
[ECO "E93"]
[WhiteElo "2381"]
[BlackElo "2534"]
[Annotator "ChessBase"]
[PlyCount "108"]
[EventDate "2019.07.17"]
[EventType "team-tourn"]
[EventCountry "TUR"]
[SourceTitle "playchess.com"]
[Source "ChessBase"]
[SourceQuality "1"]
[TimeControl "40/5400+30:1800+30"]

1. Nf3 g6 2. c4 Bg7 3. Nc3 Nf6 4. e4 O-O 5. d4 d6 6. Be2 Nbd7 7. Bg5 h6 8. Bh4 e5 9. d5 a5 10. Nd2 Nc5 11. g4 c6 12. f3 Bd7 13. Nb3 Na6 14. O-O a4 15. Nd2 Qa5 16. a3 cxd5 17. cxd5 b5 18. Bd3 Rfc8 19. Na2 Nh7 20. Be1 Bf6 21. Kh1 Qd8 22. Nb1 Nc5 23. Nbc3 Rab8 24. Qe2 Nb3 25. Rd1 Nd4 26. Qf2 Bg5 27. Nb4 Bf4 {[%emt 1:33:51]} 28. Ne2 {[%emt 1:34:04]} Nxe2 {[%emt 0:00:30]} 29. Qxe2 {[%emt 0:00:30]} Kg7 {[%emt 0:00:30]} 30. Bd2 {[%emt 0:00:30]} Bxd2 {[%emt 0:00:30]} 31. Qxd2 {[%emt 0:00:30]} Qf6 {[%emt 0:00:34]} 32. Qe3 {[%emt 0:02:23]} Rb7 {[%emt 0:01:14]} 33. Qf2 {[%emt 0:02:40]} h5 {[%emt 0:01:05]} 34. gxh5 {[%emt 0:01:21]} Ng5 {[%emt 0:00:04]} 35. h6+ {[%emt 0:01:06]} Kxh6 {[%emt 0:00:30]} 36. Qh4+ {[%emt 0:00:30]} Kg7 {[%emt 0:00:00]} 37. f4 {[%emt 0:00:31]} Nxe4 {[%emt 0:04:22]} 38. Qe1 {[%emt 0:02:13]} Nc5 {[%emt 0:00:01]} 39. fxe5 {[%emt 0:00:39]} Qxe5 {[%emt 0:00:03]} 40. Qf2 {[%emt 0:00:00]} Bg4 {[%emt 0:00:00]} 41. Rd2 {[%emt 0:12:33]} Rh8 {[%emt 0:15:16]} 42. Qf4 {[%emt 0:16:19]} Nxd3 {[%emt 0:02:30]} 43. Rxd3 {[%emt 0:01:04]} Be2 {[%emt 0:03:01]} 44. Re3 {[%emt 0:00:21]} Qxf4 {[%emt 0:01:13]} 45. Rxf4 {[%emt 0:00:30]} Bc4 {[%emt 0:00:00]} 46. Kg1 {[%emt 0:04:15]} Rh5 {[%emt 0:00:00]} 47. Rd4 {[%emt 0:00:12]} Rf5 {[%emt 0:00:00]} 48. Re8 {[%emt 0:00:39]} Rc7 {[%emt 0:03:00]} 49. Rd8 {[%emt 0:00:50]} Re7 {[%emt 0:00:44]} 50. h4 {[%emt 0:00:45]} Re1+ {[%emt 0:04:59]} 51. Kg2 {[%emt 0:00:30]} Re2+ {[%emt 0:00:00]} 52. Kg3 {[%emt 0:00:05]} Ref2 {[%emt 0:00:00]} 53. Rd7 {[%emt 0:00:40]} Bf1 {[%emt 0:00:12]} 54. Rd1 {[%emt 0:00:36]} Rg2+ {[%emt 0:00:34]} 0-1

[Event "Turkish Super League 2019"]
[Site "Konya"]
[Date "2019.07.17"]
[Round "1"]
[White "Arat, Ufuk Sezen"]
[Black "Esen, Baris"]
[Result "1-0"]
[ECO "E60"]
[WhiteElo "2376"]
[BlackElo "2478"]
[Annotator "ChessBase"]
[PlyCount "135"]
[EventDate "2019.07.17"]
[EventType "team-tourn"]
[EventCountry "TUR"]
[SourceTitle "playchess.com"]
[Source "ChessBase"]
[SourceQuality "1"]
[TimeControl "40/5400+30:1800+30"]

1. d4 Nf6 2. c4 g6 3. Nf3 Bg7 4. b3 O-O 5. Bb2 c5 6. d5 e6 7. dxe6 fxe6 8. e3 d5 9. Bd3 b6 10. O-O Bb7 11. Nbd2 Nc6 12. Qe2 Qe7 13. a3 Rad8 14. Ne5 Nxe5 15. Bxe5 Nd7 16. Bxg7 Qxg7 17. Bc2 Ba6 18. Rab1 e5 19. b4 d4 20. Be4 Nf6 21. Bc6 Qc7 22. b5 Bb7 23. Bxb7 Qxb7 24. e4 {[%emt 1:35:55]} Ra8 {[%emt 1:35:08]} 25. Rb3 {[%emt 0:00:30]} a6 {[%emt 0:00:30]} 26. bxa6 {[%emt 0:00:30]} Rxa6 {[%emt 0:00:30]} 27. Rfb1 {[%emt 0:02:37]} Rfa8 {[%emt 0:01:36]} 28. Qf3 {[%emt 0:01:04]} Qc6 {[%emt 0:00:37]} 29. Qg3 {[%emt 0:00:44]} Qe6 {[%emt 0:02:00]} 30. Qd3 {[%emt 0:00:29]} Nd7 {[%emt 0:00:17]} 31. g3 {[%emt 0:00:35]} Rf8 {[%emt 0:03:21]} 32. Rf1 {[%emt 0:00:10]} Qd6 {[%emt 0:00:37]} 33. Qe2 {[%emt 0:01:14]} Ra4 {[%emt 0:00:46]} 34. Rfb1 {[%emt 0:01:07]} Qe6 {[%emt 0:00:20]} 35. Rf3 {[%emt 0:00:21]} Rxf3 {[%emt 0:01:02]} 36. Qxf3 {[%emt 0:00:31]} Qc6 {[%emt 0:00:30]} 37. Rb3 {[%emt 0:00:07]} Ra8 {[%emt 0:00:18]} 38. h4 {[%emt 0:02:25]} Nf6 {[%emt 0:00:10]} 39. Qd3 {[%emt 0:00:00]} Ra6 {[%emt 0:00:35]} 40. Kg2 {[%emt 0:00:00]} Ra7 {[%emt 0:00:00]} 41. Qb1 {[%emt 0:02:11]} Ra6 {[%emt 0:06:13]} 42. Qd3 {[%emt 0:06:30]} Kg7 {[%emt 0:06:30]} 43. Qb1 {[%emt 0:01:30]} Kf7 {[%emt 0:00:52]} 44. Kg1 {[%emt 0:01:30]} Ke7 {[%emt 0:01:16]} 45. Rf3 {[%emt 0:01:30]} Ra4 {[%emt 0:03:49]} 46. Rb3 {[%emt 0:00:30]} Nd7 {[%emt 0:00:29]} 47. Qd3 {[%emt 0:00:30]} Qe6 {[%emt 0:00:42]} 48. Kg2 {[%emt 0:00:30]} Kd8 {[%emt 0:00:46]} 49. Rb5 {[%emt 0:04:19]} Qc6 {[%emt 0:01:11]} 50. Rb3 {[%emt 0:05:08]} Kc7 {[%emt 0:00:13]} 51. Qb1 {[%emt 0:00:26]} Ra8 {[%emt 0:01:55]} 52. Rf3 {[%emt 0:01:35]} Nf6 {[%emt 0:00:57]} 53. h5 {[%emt 0:04:01]} gxh5 {[%emt 0:04:43]} 54. Qh1 {[%emt 0:00:05]} Rg8 {[%emt 0:04:00]} 55. Qh4 {[%emt 0:00:15]} Rg6 {[%emt 0:00:54]} 56. Rf5 {[%emt 0:00:07]} Qe6 {[%emt 0:00:36]} 57. Nf3 {[%emt 0:00:52]} Nd7 {[%emt 0:00:19]} 58. Qxh5 {[%emt 0:01:52]} Rg7 {[%emt 0:01:17]} 59. Nxe5 {[%emt 0:01:45]} Nxe5 {[%emt 0:00:38]} 60. Rxe5 {[%emt 0:00:07]} Qxc4 {[%emt 0:00:00]} 61. Rd5 {[%emt 0:00:43]} Kb7 {[%emt 0:00:09]} 62. Qe8 {[%emt 0:01:28]} Ka6 {[%emt 0:00:48]} 63. Qc8+ {[%emt 0:02:48]} Ka5 {[%emt 0:00:42]} 64. Rd6 {[%emt 0:00:37]} Ra7 {[%emt 0:03:01]} 65. e5 {[%emt 0:00:37]} d3 {[%emt 0:00:19]} 66. Qc6 {[%emt 0:00:30]} Ra6 {[%emt 0:00:07]} 67. e6 {[%emt 0:00:30]} d2 {[%emt 0:00:45]} 68. e7 {[%emt 0:00:43]} 1-0

[Event "Turkish Super League 2019"]
[Site "Konya"]
[Date "2019.07.17"]
[Round "1"]
[White "Tanriverdi, Enes"]
[Black "Ozen, Bahadir"]
[Result "1/2-1/2"]
[ECO "D58"]
[WhiteElo "2374"]
[BlackElo "2366"]
[Annotator "NA"]
[PlyCount "119"]
[EventDate "2019.07.17"]
[EventType "team-tourn"]
[EventCountry "TUR"]
[SourceTitle "playchess.com"]
[Source "ChessBase"]
[SourceQuality "1"]
[TimeControl "40/5400+30:1800+30"]

1. d4 d5 2. c4 e6 3. Nc3 Be7 4. Nf3 Nf6 5. Bg5 h6 6. Bh4 O-O 7. e3 b6 8. Be2 Bb7 9. Bxf6 Bxf6 10. cxd5 exd5 11. O-O Nd7 12. Qb3 c6 13. Rad1 Re8 14. Rfe1 Nf8 15. e4 Ne6 16. Bf1 dxe4 17. Nxe4 Qe7 18. Bc4 Rad8 19. Ng3 Bc8 20. Nh5 b5 21. Bd3 Bxd4 22. Nxd4 Rxd4 23. Bh7+ Kxh7 24. Rxd4 Nxd4 25. Rxe7 Rxe7 26. Qb4 c5 27. Qa5 Re2 28. h3 Bf5 29. Qxa7 Bg6 30. Qxc5 Rxb2 31. Nxg7 Nf3+ 32. gxf3 Rb1+ 33. Kg2 Kxg7 34. f4 f6 35. f5 Bf7 36. a3 Rb3 37. f3 Rd3 38. Qe7 h5 39. Kg3 Rd5 40. Kf4 Rd4+ 41. Kg3 Rd5 42. Qe4 Re5 43. Qb1 Re3 44. Qb2 Re5 45. Kf4 {[%emt 1:39:30]} Kh7 {[%emt 1:30:30]} 46. Qb4 {[%emt 0:00:30]} Kg7 {[%emt 0:00:30]} 47. Qb1 {[%emt 0:14:30]} Kh7 {[%emt 0:01:30]} 48. Qg1 {[%emt 0:02:30]} Kh8 {[%emt 0:00:30]} 49. Qb6 {[%emt 0:01:30]} Kg7 {[%emt 0:00:30]} 50. Qc6 {[%emt 0:00:00]} Be8 {[%emt 0:01:30]} 51. Qb7+ {[%emt 0:01:00]} Bf7 {[%emt 0:00:30]} 52. Qa6 {[%emt 0:00:30]} Bg8 {[%emt 0:00:30]} 53. Qc8 {[%emt 0:00:30]} Bf7 {[%emt 0:00:30]} 54. Kg3 {[%emt 0:00:30]} Re3 {[%emt 0:01:30]} 55. Qc5 {[%emt 0:02:30]} Re5 {[%emt 0:00:00]} 56. Qc2 {[%emt 0:04:30]} Re3 {[%emt 0:00:00]} 57. Qb2 {[%emt 0:00:30]} Re5 {[%emt 0:00:30]} 58. Kf4 {[%emt 0:00:30]} Kh7 {[%emt 0:02:30]} 59. Qb4 {[%emt 0:05:56]} Kg7 {[%emt 0:00:30]} 60. Qb2 {[%emt 0:00:24]} 1/2-1/2

[Event "Turkish Super League 2019"]
[Site "Konya"]
[Date "2019.07.17"]
[Round "1"]
[White "Selbes, Tarik"]
[Black "Yaran, Siar"]
[Result "0-1"]
[ECO "E05"]
[WhiteElo "2342"]
[BlackElo "2197"]
[Annotator "NA"]
[PlyCount "132"]
[EventDate "2019.07.17"]
[EventType "team-tourn"]
[EventCountry "TUR"]
[SourceTitle "playchess.com"]
[Source "ChessBase"]
[SourceQuality "1"]
[TimeControl "40/5400+30:1800+30"]

1. d4 Nf6 2. Nf3 e6 3. c4 d5 4. g3 Be7 5. Bg2 O-O 6. O-O dxc4 7. Qc2 a6 8. a4 Bd7 9. Qxc4 Bc6 10. Bg5 Bd5 11. Qd3 Be4 12. Qe3 Nbd7 13. Nc3 Bg6 14. Nh4 c6 15. Nxg6 hxg6 16. Qd3 Nd5 17. Bxe7 Qxe7 18. a5 Rfd8 19. e4 Nb4 20. Qc4 b5 21. Qb3 e5 22. Rad1 exd4 23. Rxd4 c5 24. Rxb4 cxb4 25. Nd5 Qc5 26. Qxb4 Qxb4 27. Nxb4 Ne5 28. f4 Nc4 29. e5 Rac8 30. Nd5 Kf8 31. b4 Nb2 32. h4 Rc2 33. Bf3 {[%emt 1:29:53]} Rdc8 {[%emt 1:39:28]} 34. h5 {[%emt 0:00:30]} gxh5 {[%emt 0:00:30]} 35. f5 {[%emt 0:00:35]} Rc1 {[%emt 0:03:33]} 36. Bxh5 {[%emt 0:04:02]} Rxf1+ {[%emt 0:00:30]} 37. Kxf1 {[%emt 0:00:30]} Nc4 {[%emt 0:03:20]} 38. e6 {[%emt 0:00:00]} Nd6 {[%emt 0:00:47]} 39. Kg2 {[%emt 0:11:43]} Rc4 {[%emt 0:00:37]} 40. Kh3 {[%emt 0:00:00]} Rd4 {[%emt 0:00:00]} 41. Nc7 {[%emt 0:09:17]} Nxf5 {[%emt 0:06:45]} 42. exf7 {[%emt 0:00:30]} Rd6 {[%emt 0:00:00]} 43. Kg4 {[%emt 0:15:50]} Nh6+ {[%emt 0:02:00]} 44. Kf4 {[%emt 0:00:05]} Nxf7 {[%emt 0:09:37]} 45. Ke4 {[%emt 0:00:08]} Rc6 {[%emt 0:01:41]} 46. Nd5 {[%emt 0:00:18]} g6 {[%emt 0:00:50]} 47. Be2 {[%emt 0:01:54]} Re6+ {[%emt 0:00:29]} 48. Kd3 {[%emt 0:00:45]} Ne5+ {[%emt 0:02:52]} 49. Kd4 {[%emt 0:02:26]} Nc6+ {[%emt 0:03:13]} 50. Kc5 {[%emt 0:02:22]} Nxa5 {[%emt 0:00:12]} 51. Nf4 {[%emt 0:02:55]} Nb7+ {[%emt 0:02:42]} 52. Kd5 {[%emt 0:00:02]} Rb6 {[%emt 0:04:40]} 53. Bd3 {[%emt 0:00:30]} Rd6+ {[%emt 0:00:30]} 54. Ke5 {[%emt 0:00:00]} g5 {[%emt 0:01:53]} 55. Ne6+ {[%emt 0:01:44]} Ke7 {[%emt 0:00:37]} 56. Bf5 {[%emt 0:00:04]} Nd8 {[%emt 0:00:07]} 57. Nxg5 {[%emt 0:01:33]} Nc6+ {[%emt 0:00:30]} 58. Kf4 {[%emt 0:00:00]} Nxb4 {[%emt 0:00:04]} 59. Ne4 {[%emt 0:00:00]} Rc6 {[%emt 0:00:32]} 60. g4 {[%emt 0:00:27]} a5 {[%emt 0:00:32]} 61. g5 {[%emt 0:00:30]} a4 {[%emt 0:00:10]} 62. g6 {[%emt 0:01:14]} a3 {[%emt 0:00:37]} 63. g7 {[%emt 0:01:32]} Kf7 {[%emt 0:00:15]} 64. Be6+ {[%emt 0:00:08]} Rxe6 {[%emt 0:01:12]} 65. Ng5+ {[%emt 0:00:35]} Kg8 {[%emt 0:00:03]} 66. Nxe6 {[%emt 0:00:24]} a2 {[%emt 0:00:30]} 0-1

[Event "Turkish Super League 2019"]
[Site "Konya"]
[Date "2019.07.17"]
[Round "1"]
[White "Ozturk, Kubra"]
[Black "Osmak, Iulija"]
[Result "0-1"]
[ECO "E46"]
[WhiteElo "2317"]
[BlackElo "2395"]
[Annotator "NA"]
[PlyCount "110"]
[EventDate "2019.07.17"]
[EventType "team-tourn"]
[EventCountry "TUR"]
[SourceTitle "playchess.com"]
[Source "ChessBase"]
[SourceQuality "1"]
[TimeControl "40/5400+30:1800+30"]

1. d4 Nf6 2. c4 e6 3. Nc3 Bb4 4. e3 O-O 5. Nge2 Re8 6. a3 Bf8 7. Ng3 d5 8. Bd3 dxc4 9. Bxc4 c5 10. dxc5 Qxd1+ 11. Kxd1 Bxc5 12. b4 Be7 13. Ke2 a6 14. Bd2 b5 15. Bd3 Bb7 16. Nce4 Nfd7 17. Bc3 Nc6 18. f4 Nb6 19. Rac1 Rac8 20. Nc5 Bxc5 21. bxc5 Na4 22. Ne4 Nxc3+ 23. Rxc3 Rc7 24. Nd6 Rd8 25. Be4 Ba8 26. Rd1 Rb8 27. g4 Kf8 28. h4 h6 29. g5 {[%emt 1:36:36]} Ke7 {[%emt 1:32:45]} 30. gxh6 {[%emt 0:00:30]} gxh6 {[%emt 0:00:30]} 31. Rg1 {[%emt 0:00:30]} Na5 {[%emt 0:01:42]} 32. Bxa8 {[%emt 0:05:58]} Rxa8 {[%emt 0:00:03]} 33. e4 {[%emt 0:01:03]} Nc4 {[%emt 0:05:52]} 34. Nxc4 {[%emt 0:00:51]} Rxc5 {[%emt 0:00:13]} 35. Nb6 {[%emt 0:00:52]} Rxc3 {[%emt 0:00:30]} 36. Nxa8 {[%emt 0:00:00]} Rc8 {[%emt 0:00:07]} 37. Nb6 {[%emt 0:01:08]} Rb8 {[%emt 0:00:38]} 38. Nd5+ {[%emt 0:01:13]} exd5 {[%emt 0:00:30]} 39. exd5 {[%emt 0:00:00]} Rd8 {[%emt 0:00:38]} 40. Rd1 {[%emt 0:00:00]} Kd6 {[%emt 0:00:00]} 41. Kf3 {[%emt 0:04:49]} Rc8 {[%emt 0:07:02]} 42. Ke4 {[%emt 0:08:50]} Rc3 {[%emt 0:01:30]} 43. Kf5 {[%emt 0:02:32]} Rxa3 {[%emt 0:02:30]} 44. Kf6 {[%emt 0:00:28]} Rf3 {[%emt 0:02:30]} 45. f5 {[%emt 0:00:57]} a5 {[%emt 0:01:30]} 46. Rb1 {[%emt 0:01:00]} b4 {[%emt 0:01:30]} 47. Ra1 {[%emt 0:00:25]} Ra3 {[%emt 0:01:30]} 48. Rd1 {[%emt 0:00:12]} b3 {[%emt 0:07:20]} 49. Kxf7 {[%emt 0:00:19]} b2 {[%emt 0:00:00]} 50. Rb1 {[%emt 0:00:21]} Rb3 {[%emt 0:00:20]} 51. f6 {[%emt 0:00:58]} a4 {[%emt 0:00:08]} 52. Kg7 {[%emt 0:02:26]} a3 {[%emt 0:00:08]} 53. f7 {[%emt 0:00:43]} Rg3+ {[%emt 0:01:06]} 54. Kh8 {[%emt 0:06:19]} Ke7 {[%emt 0:02:11]} 55. Rf1 {[%emt 0:03:38]} Kf8 {[%emt 0:00:06]} 0-1

[Event "Turkish Super League 2019"]
[Site "Konya"]
[Date "2019.07.17"]
[Round "1"]
[White "Tasdogen, Dincer"]
[Black "Uysal, Burak"]
[Result "1-0"]
[ECO "C45"]
[WhiteElo "2310"]
[BlackElo "2228"]
[Annotator "NA"]
[PlyCount "117"]
[EventDate "2019.07.17"]
[EventType "team-tourn"]
[EventCountry "TUR"]
[SourceTitle "playchess.com"]
[Source "ChessBase"]
[SourceQuality "1"]
[TimeControl "40/5400+30:1800+30"]

1. e4 e5 2. Nf3 Nc6 3. d4 exd4 4. Nxd4 Bc5 5. Nxc6 Qf6 6. Qf3 dxc6 7. Nc3 Be6 8. a3 O-O-O 9. Qg3 Qg6 10. Bd3 f6 11. Bf4 Qxg3 12. hxg3 Ne7 13. Ke2 Ng6 14. Be3 Bxe3 15. Kxe3 Ne7 16. f3 c5 17. b4 cxb4 18. axb4 Kb8 19. Ra3 c6 20. g4 Rd7 21. Na4 b6 22. Nc3 Nc8 23. Ne2 Rc7 24. Rc3 c5 25. Nf4 Bf7 26. bxc5 Rxc5 27. Rxc5 bxc5 28. Nh5 c4 29. Be2 {[%emt 1:29:59]} Rg8 {[%emt 1:37:53]} 30. Ng3 {[%emt 0:00:30]} h6 {[%emt 0:00:30]} 31. Nf5 {[%emt 0:00:30]} Nb6 {[%emt 0:01:10]} 32. Ra1 {[%emt 0:03:20]} Be6 {[%emt 0:02:28]} 33. f4 {[%emt 0:00:39]} Bxf5 {[%emt 0:01:27]} 34. gxf5 {[%emt 0:00:02]} Re8 {[%emt 0:01:40]} 35. Ra5 {[%emt 0:00:30]} Rd8 {[%emt 0:01:09]} 36. Bh5 {[%emt 0:04:42]} c3 {[%emt 0:00:48]} 37. Rc5 {[%emt 0:01:35]} Rd2 {[%emt 0:00:21]} 38. Rxc3 {[%emt 0:01:29]} Rxg2 {[%emt 0:00:36]} 39. Bf3 {[%emt 0:00:07]} Rg1 {[%emt 0:00:37]} 40. e5 {[%emt 0:02:21]} Re1+ {[%emt 0:00:00]} 41. Kd2 {[%emt 0:07:46]} Rb1 {[%emt 0:02:51]} 42. e6 {[%emt 0:00:30]} Nc8 {[%emt 0:00:30]} 43. Rd3 {[%emt 0:00:30]} a5 {[%emt 0:01:30]} 44. Rd8 {[%emt 0:00:30]} Kc7 {[%emt 0:01:30]} 45. Rd7+ {[%emt 0:00:30]} Kb8 {[%emt 0:00:00]} 46. e7 {[%emt 0:00:00]} Nxe7 {[%emt 0:04:00]} 47. Rxe7 {[%emt 0:00:00]} a4 {[%emt 0:00:30]} 48. Rxg7 {[%emt 0:00:00]} a3 {[%emt 0:00:30]} 49. Rg8+ {[%emt 0:00:00]} Kc7 {[%emt 0:00:30]} 50. Ra8 {[%emt 0:00:00]} Rb4 {[%emt 0:02:30]} 51. Ke3 {[%emt 0:00:00]} Rb2 {[%emt 0:01:30]} 52. Rxa3 {[%emt 0:00:30]} Rxc2 {[%emt 0:00:30]} 53. Ra6 {[%emt 0:00:30]} h5 {[%emt 0:00:30]} 54. Rxf6 {[%emt 0:00:00]} h4 {[%emt 0:01:30]} 55. Rh6 {[%emt 0:00:00]} Rh2 {[%emt 0:00:30]} 56. Ke4 {[%emt 0:00:30]} Rh3 {[%emt 0:00:58]} 57. Rh7+ {[%emt 0:00:30]} Kd6 {[%emt 0:00:30]} 58. f6 {[%emt 0:00:30]} Ke6 {[%emt 0:00:30]} 59. Bg4+ {[%emt 0:00:00]} 1-0

[Event "Turkish Super League 2019"]
[Site "Konya"]
[Date "2019.07.17"]
[Round "1"]
[White "Caglar, Sila"]
[Black "Savina, Anastasia"]
[Result "0-1"]
[ECO "B08"]
[WhiteElo "2306"]
[BlackElo "2344"]
[Annotator "NA"]
[PlyCount "84"]
[EventDate "2019.07.17"]
[EventType "team-tourn"]
[EventCountry "TUR"]
[SourceTitle "playchess.com"]
[Source "ChessBase"]
[SourceQuality "1"]
[TimeControl "40/5400+30:1800+30"]

1. e4 Nc6 2. Nf3 d6 3. d4 Nf6 4. Nc3 g6 5. h3 Bg7 6. Be2 O-O 7. O-O e5 8. Bg5 h6 9. Be3 exd4 10. Nxd4 Re8 11. Bd3 Bd7 12. Qd2 Nxd4 13. Bxd4 Kh7 14. a4 c5 15. Be3 Bc6 16. f3 Nh5 17. Rfe1 Qh4 18. Bf2 Bd4 19. Bb5 Nf4 20. Bxd4 cxd4 21. Ne2 Nxe2+ 22. Rxe2 Bxb5 23. axb5 Qh5 {[%emt 1:40:55]} 24. Qxd4 {[%emt 1:28:42]} Qxb5 {[%emt 0:00:30]} 25. Rd2 {[%emt 0:00:30]} Kg8 {[%emt 0:00:30]} 26. Rad1 {[%emt 0:10:49]} Rac8 {[%emt 0:00:31]} 27. Qxd6 {[%emt 0:01:15]} Qxb2 {[%emt 0:00:19]} 28. Qf4 {[%emt 0:02:10]} Rxc2 {[%emt 0:00:11]} 29. Rxc2 {[%emt 0:00:45]} Qxc2 {[%emt 0:00:52]} 30. Rd7 {[%emt 0:00:30]} Qb3 {[%emt 0:00:34]} 31. Qc7 {[%emt 0:00:15]} a6 {[%emt 0:00:35]} 32. h4 {[%emt 0:00:33]} h5 {[%emt 0:00:29]} 33. Rd5 {[%emt 0:00:27]} b5 {[%emt 0:00:31]} 34. Qd7 {[%emt 0:00:29]} Rf8 {[%emt 0:00:28]} 35. e5 {[%emt 0:00:29]} Qe3+ {[%emt 0:00:28]} 36. Kf1 {[%emt 0:00:29]} b4 {[%emt 0:00:24]} 37. Qb7 {[%emt 0:00:33]} b3 {[%emt 0:00:30]} 38. Rd6 {[%emt 0:00:25]} Qc1+ {[%emt 0:00:40]} 39. Kf2 {[%emt 0:00:14]} Qc5+ {[%emt 0:00:25]} 40. Kf1 {[%emt 0:00:00]} Qxe5 {[%emt 0:00:00]} 41. Qxa6 {[%emt 0:05:55]} b2 {[%emt 0:05:38]} 42. Rd1 {[%emt 0:00:30]} Qh2 {[%emt 0:08:44]} 0-1

[Event "Turkish Super League 2019"]
[Site "Konya"]
[Date "2019.07.17"]
[Round "1"]
[White "Dordzhieva, Dinara"]
[Black "Mammadzada, Gunay"]
[Result "1/2-1/2"]
[ECO "B52"]
[WhiteElo "2306"]
[BlackElo "2427"]
[Annotator "NA"]
[PlyCount "100"]
[EventDate "2019.07.17"]
[EventType "team-tourn"]
[EventCountry "TUR"]
[SourceTitle "playchess.com"]
[Source "ChessBase"]
[SourceQuality "1"]
[TimeControl "40/5400+30:1800+30"]

1. e4 c5 2. Nf3 d6 3. Bb5+ Bd7 4. Bxd7+ Qxd7 5. O-O Nf6 6. Re1 Nc6 7. c3 e6 8. d4 cxd4 9. cxd4 d5 10. e5 Ne4 11. Nbd2 Nxd2 12. Bxd2 Bb4 13. Rc1 Bxd2 14. Qxd2 O-O 15. Rc3 Rac8 16. a3 Ne7 17. Rec1 Rxc3 18. Rxc3 Rc8 19. h3 h6 20. Qc2 Rxc3 21. Qxc3 Qc6 22. Qxc6 Nxc6 23. Kf1 Kh7 24. Ke2 Kg6 25. Ke3 h5 26. b4 b5 27. Ne1 Kf5 28. Nc2 g5 29. Kf3 h4 {[%emt 1:40:47]} 30. Ne3+ {[%emt 1:32:41]} Kg6 {[%emt 0:00:30]} 31. Nc2 {[%emt 0:00:30]} Kh5 {[%emt 0:00:30]} 32. Ke3 {[%emt 0:00:30]} Ne7 {[%emt 0:00:30]} 33. Kf3 {[%emt 0:02:09]} Nc8 {[%emt 0:02:18]} 34. g4+ {[%emt 0:09:24]} hxg3 {[%emt 0:01:09]} 35. fxg3 {[%emt 0:00:30]} g4+ {[%emt 0:00:00]} 36. hxg4+ {[%emt 0:01:21]} Kg5 {[%emt 0:00:06]} 37. Ne1 {[%emt 0:00:48]} Nb6 {[%emt 0:00:07]} 38. Nc2 {[%emt 0:00:00]} Nc4 {[%emt 0:00:00]} 39. Kf2 {[%emt 0:00:00]} Kxg4 {[%emt 0:00:00]} 40. Kg2 {[%emt 0:00:00]} a6 {[%emt 0:00:00]} 41. Kf2 {[%emt 0:02:37]} Nd2 {[%emt 0:08:33]} 42. Ke2 {[%emt 0:07:30]} Nc4 {[%emt 0:09:54]} 43. Kf2 {[%emt 0:01:30]} a5 {[%emt 0:03:03]} 44. bxa5 {[%emt 0:02:30]} Nxa5 {[%emt 0:00:03]} 45. Ne3+ {[%emt 0:01:15]} Kg5 {[%emt 0:05:20]} 46. Kf3 {[%emt 0:01:23]} Nc4 {[%emt 0:02:06]} 47. Nc2 {[%emt 0:00:01]} Kf5 {[%emt 0:02:45]} 48. Ne3+ {[%emt 0:00:13]} Kg5 {[%emt 0:00:40]} 49. Nc2 {[%emt 0:00:03]} Kf5 {[%emt 0:00:19]} 50. Ne3+ {[%emt 0:00:30]} Kg5 {[%emt 0:00:03]} 1/2-1/2